[Event "Masters Tournament (MTO)"]
[Site "Biel, Switzerland"]
[Date "2026.07.14"]
[Round "2.17"]
[White "Malli, Suvirr"]
[Black "Balabayeva, Xeniya"]
[Result "0-1"]
[TimeControl "100+30+30sec/move"]
[WhiteTitle "-"]
[BlackTitle "-"]
[WhiteFideId "1341855"]
[BlackFideId "13719688"]
[WhiteElo "2120"]
[BlackElo "2302"]

1. e4 {[%clk 01:40:56]} {[%emt 00:00:02]} e5 {[%clk 01:40:53]} {[%emt
00:00:08]} 2. Nf3 {[%clk 01:41:18]} {[%emt 00:00:07]} Nc6 {[%clk 01:41:14]}
{[%emt 00:00:08]} 3. Bc4 {[%clk 01:41:42]} {[%emt 00:00:06]} Nf6 {[%clk
01:41:37]} {[%emt 00:00:07]} 4. d3 {[%clk 01:42:05]} {[%emt 00:00:06]} Be7
{[%clk 01:42:01]} {[%emt 00:00:07]} 5. O-O {[%clk 01:42:14]} {[%emt 00:00:21]}
O-O {[%clk 01:42:24]} {[%emt 00:00:06]} 6. Re1 {[%clk 01:42:23]} {[%emt
00:00:21]} d6 {[%clk 01:42:43]} {[%emt 00:00:12]} 7. a4 {[%clk 01:42:35]}
{[%emt 00:00:17]} Na5 {[%clk 01:42:58]} {[%emt 00:00:15]} 8. Ba2 {[%clk
01:42:41]} {[%emt 00:00:24]} c5 {[%clk 01:43:20]} {[%emt 00:00:08]} 9. c3
{[%clk 01:42:03]} {[%emt 00:01:08]} Nc6 {[%clk 01:41:22]} {[%emt 00:02:29]} 10.
h3 {[%clk 01:36:31]} {[%emt 00:06:04]} Be6 {[%clk 01:35:37]} {[%emt 00:06:15]}
11. Bxe6 {[%clk 01:35:31]} {[%emt 00:01:29]} fxe6 {[%clk 01:35:59]} {[%emt
00:00:09]} 12. d4 {[%clk 01:33:50]} {[%emt 00:02:11]} cxd4 {[%clk 01:19:42]}
{[%emt 00:16:47]} 13. cxd4 {[%clk 01:33:54]} {[%emt 00:00:26]} Qb6 {[%clk
01:19:25]} {[%emt 00:00:47]} 14. d5 {[%clk 01:12:23]} {[%emt 00:22:01]} exd5
{[%clk 01:13:18]} {[%emt 00:06:37]} 15. exd5 {[%clk 01:10:57]} {[%emt
00:01:55]} Nb4 {[%clk 01:12:15]} {[%emt 00:01:34]} 16. Nc3 {[%clk 01:06:49]}
{[%emt 00:04:38]} Qa6 {[%clk 00:58:27]} {[%emt 00:14:17]} 17. Bg5 {[%clk
00:57:16]} {[%emt 00:10:04]} h6 {[%clk 00:52:21]} {[%emt 00:06:36]} 18. Bxf6
{[%clk 00:53:30]} {[%emt 00:04:16]} Bxf6 {[%clk 00:51:52]} {[%emt 00:01:00]} 19.
Re4 {[%clk 00:34:12]} {[%emt 00:19:46]} Nd3 {[%clk 00:42:21]} {[%emt 00:10:01]}
20. Nb5 {[%clk 00:29:59]} {[%emt 00:04:43]} Nc5 {[%clk 00:39:11]} {[%emt
00:03:40]} 21. Re2 {[%clk 00:12:35]} {[%emt 00:17:54]} Rac8 {[%clk 00:30:04]}
{[%emt 00:09:37]} 22. Nd2 {[%clk 00:12:06]} {[%emt 00:00:59]} Nxa4 {[%clk
00:21:49]} {[%emt 00:08:46]} 23. Rxa4 {[%clk 00:05:03]} {[%emt 00:07:32]} Qxb5
{[%clk 00:22:12]} {[%emt 00:00:08]} 24. Ne4 {[%clk 00:04:10]} {[%emt 00:01:22]}
Qb6 {[%clk 00:20:51]} {[%emt 00:01:52]} 25. Ra3 {[%emt 00:06:40]} Rc4 {[%clk
00:16:47]} 26. Rc3 {[%clk 00:00:58]} {[%emt 00:02:04]} Rxc3 {[%clk 00:11:21]}
{[%emt 00:05:57]} 27. Nxc3 {[%clk 00:01:19]} {[%emt 00:00:10]} Qd4 {[%clk
00:05:18]} {[%emt 00:06:33]} 28. Qc2 {[%clk 00:00:34]} {[%emt 00:01:13]} Rc8
{[%clk 00:03:50]} {[%emt 00:01:59]} 29. Rd2 {[%clk 00:00:35]} {[%emt 00:00:28]}
Qf4 {[%clk 00:03:55]} {[%emt 00:00:25]} 30. g3 {[%clk 00:00:35]} {[%emt
00:00:31]} Qf3 {[%clk 00:02:39]} {[%emt 00:01:46]} 31. Rd3 {[%clk 00:00:32]}
{[%emt 00:00:33]} Qf5 {[%clk 00:03:00]} {[%emt 00:00:08]} 32. Kg2 {[%clk
00:00:34]} {[%emt 00:00:29]} e4 {[%clk 00:02:58]} {[%emt 00:00:32]} 33. Re3
{[%clk 00:00:46]} {[%emt 00:00:18]} Bxc3 {[%clk 00:03:12]} {[%emt 00:00:16]} 34.
bxc3 {[%clk 00:01:01]} {[%emt 00:00:16]} Qxd5 {[%clk 00:03:29]} {[%emt
00:00:12]} 35. Qa4 {[%clk 00:00:58]} {[%emt 00:00:33]} a6 {[%clk 00:02:44]}
{[%emt 00:01:16]} 36. Qd7 {[%clk 00:01:00]} {[%emt 00:00:27]} Rf8 {[%clk
00:02:53]} {[%emt 00:00:21]} 37. Qg4 {[%clk 00:00:41]} {[%emt 00:00:49]} Re8
{[%clk 00:02:13]} {[%emt 00:01:10]} 38. Qd7 {[%clk 00:00:38]} {[%emt 00:00:33]}
Qc6 {[%clk 00:01:24]} {[%emt 00:01:19]} 39. Qf5 {[%clk 00:00:41]} {[%emt
00:00:25]} b5 {[%clk 00:00:38]} {[%emt 00:01:18]} 40. g4 {[%clk 00:00:38]}
{[%emt 00:00:33]} a5 {[%clk 00:00:36]} {[%emt 00:00:33]} 41. h4 {[%clk
00:27:32]} {[%emt 00:03:35]} Re5 {[%clk 00:25:18]} {[%emt 00:05:49]} 42. Qg6
{[%clk 00:26:17]} {[%emt 00:01:43]} Qd5 {[%clk 00:24:58]} {[%emt 00:00:50]} 43.
g5 {[%clk 00:24:29]} {[%emt 00:02:20]} hxg5 {[%clk 00:24:14]} {[%emt 00:01:13]}
44. Kh2 {[%clk 00:23:16]} {[%emt 00:01:42]} gxh4 {[%clk 00:23:25]} {[%emt
00:01:20]} 45. Qg4 {[%clk 00:21:26]} {[%emt 00:02:20]} Rg5 {[%clk 00:20:44]}
{[%emt 00:03:11]} 46. Qc8+ {[%clk 00:21:40]} {[%emt 00:00:16]} Kh7 {[%clk
00:21:08]} {[%emt 00:00:06]} 47. Rh3 {[%clk 00:20:44]} {[%emt 00:01:26]} Qe5+
{[%clk 00:21:30]} {[%emt 00:00:08]} 48. Kh1 {[%clk 00:21:07]} {[%emt 00:00:07]}
Qf4 {[%clk 00:21:53]} {[%emt 00:00:07]} 49. Qd8 {[%clk 00:20:34]} {[%emt
00:01:03]} Qc1+ {[%clk 00:22:16]} {[%emt 00:00:07]} 0-1

[Event "Masters Tournament (MTO)"]
[Site "Biel, Switzerland"]
[Date "2026.07.14"]
[Round "2.18"]
[White "Arsenie, Cristian Marc"]
[Black "Coban, Ege"]
[Result "1/2-1/2"]
[TimeControl "100+30+30sec/move"]
[WhiteTitle "-"]
[BlackTitle "-"]
[WhiteFideId "1345923"]
[BlackFideId "26320304"]
[WhiteElo "2300"]
[BlackElo "1986"]

1. e4 {[%clk 01:40:57]} {[%emt 00:00:01]} c5 {[%clk 01:40:55]} {[%emt
00:00:06]} 2. Nf3 {[%clk 01:41:22]} {[%emt 00:00:05]} Nc6 {[%clk 01:41:20]}
{[%emt 00:00:05]} 3. Bb5 {[%clk 01:41:46]} {[%emt 00:00:05]} g6 {[%clk
01:41:43]} {[%emt 00:00:07]} 4. Bxc6 {[%clk 01:42:11]} {[%emt 00:00:05]} bxc6
{[%clk 01:42:09]} {[%emt 00:00:04]} 5. O-O {[%clk 01:42:34]} {[%emt 00:00:07]}
Bg7 {[%clk 01:42:36]} {[%emt 00:00:04]} 6. Re1 {[%clk 01:42:58]} {[%emt
00:00:06]} Nh6 {[%clk 01:43:00]} {[%emt 00:00:05]} 7. c3 {[%clk 01:43:23]}
{[%emt 00:00:05]} O-O {[%clk 01:43:25]} {[%emt 00:00:05]} 8. h3 {[%clk
01:43:45]} {[%emt 00:00:09]} f5 {[%clk 01:43:32]} {[%emt 00:00:22]} 9. e5
{[%clk 01:44:09]} {[%emt 00:00:06]} Nf7 {[%clk 01:43:51]} {[%emt 00:00:11]} 10.
d4 {[%clk 01:44:24]} {[%emt 00:00:15]} cxd4 {[%clk 01:44:16]} {[%emt 00:00:04]}
11. cxd4 {[%clk 01:44:47]} {[%emt 00:00:08]} Bb7 {[%clk 01:44:35]} {[%emt
00:00:11]} 12. Na3 {[%clk 01:45:08]} {[%emt 00:00:09]} c5 {[%clk 01:40:48]}
{[%emt 00:04:17]} 13. dxc5 {[%clk 01:45:31]} {[%emt 00:00:06]} e6 {[%clk
01:39:53]} {[%emt 00:01:27]} 14. Nc4 {[%clk 01:26:07]} {[%emt 00:19:56]} Qc7
{[%clk 01:38:07]} {[%emt 00:02:15]} 15. Qd4 {[%clk 01:21:37]} {[%emt 00:05:00]}
Bd5 {[%clk 01:33:08]} {[%emt 00:05:29]} 16. Nfd2 {[%clk 01:12:12]} {[%emt
00:09:55]} Rfc8 {[%clk 01:28:30]} {[%emt 00:05:09]} 17. b4 {[%clk 01:11:10]}
{[%emt 00:01:31]} d6 {[%clk 01:14:47]} {[%emt 00:14:13]} 18. cxd6 {[%clk
01:07:27]} {[%emt 00:04:13]} Nxd6 {[%clk 01:15:01]} {[%emt 00:00:16]} 19. Nxd6
{[%clk 01:04:19]} {[%emt 00:03:38]} Qxd6 {[%clk 01:15:23]} {[%emt 00:00:08]} 20.
Bb2 {[%clk 00:59:30]} {[%emt 00:05:19]} Qd7 {[%clk 01:09:08]} {[%emt 00:06:44]}
21. Nb3 {[%clk 00:54:13]} {[%emt 00:05:48]} Rc4 {[%clk 01:05:33]} {[%emt
00:04:06]} 22. Qd2 {[%clk 00:54:09]} {[%emt 00:00:33]} Qb5 {[%clk 01:03:31]}
{[%emt 00:02:32]} 23. a3 {[%clk 00:46:15]} {[%emt 00:08:24]} Rac8 {[%clk
00:57:53]} {[%emt 00:06:08]} 24. Rac1 {[%clk 00:43:10]} {[%emt 00:03:35]} Rxc1
{[%clk 00:47:35]} {[%emt 00:10:48]} 25. Rxc1 {[%clk 00:42:32]} {[%emt
00:01:08]} Rxc1+ {[%clk 00:47:51]} {[%emt 00:00:15]} 26. Nxc1 {[%clk 00:42:57]}
{[%emt 00:00:04]} Qc4 {[%clk 00:47:57]} {[%emt 00:00:24]} 27. Nd3 {[%clk
00:34:13]} {[%emt 00:09:14]} g5 {[%clk 00:47:26]} {[%emt 00:01:00]} 28. Nc5
{[%clk 00:31:26]} {[%emt 00:03:17]} f4 {[%clk 00:46:14]} {[%emt 00:01:43]} 29.
f3 {[%clk 00:28:10]} {[%emt 00:03:46]} h5 {[%clk 00:36:57]} {[%emt 00:11:28]}
30. Nd7 {[%clk 00:27:18]} g4 {[%clk 00:34:59]} {[%emt 00:02:09]} 31. hxg4
{[%clk 00:24:14]} {[%emt 00:03:34]} hxg4 {[%clk 00:35:21]} {[%emt 00:00:08]} 32.
fxg4 {[%clk 00:18:05]} {[%emt 00:06:38]} f3 {[%clk 00:34:20]} {[%emt 00:01:32]}
33. gxf3 {[%clk 00:15:37]} {[%emt 00:02:58]} Bxf3 {[%clk 00:34:24]} {[%emt
00:00:25]} 34. Bd4 {[%clk 00:14:41]} {[%emt 00:01:26]} Qc7 {[%clk 00:32:08]}
{[%emt 00:02:47]} 35. Nf6+ {[%clk 00:05:25]} {[%emt 00:09:46]} Bxf6 {[%clk
00:32:19]} {[%emt 00:00:19]} 36. exf6 {[%clk 00:04:47]} {[%emt 00:01:09]} Qg3+
{[%clk 00:32:39]} {[%emt 00:00:09]} 37. Kf1 {[%clk 00:05:10]} {[%emt 00:00:06]}
Qxg4 {[%clk 00:31:58]} {[%emt 00:01:10]} 38. Be5 {[%clk 00:02:08]} {[%emt
00:03:35]} Bd5 {[%clk 00:30:29]} {[%emt 00:01:59]} 39. Qe3 {[%clk 00:01:19]}
{[%emt 00:01:18]} Qd1+ {[%clk 00:30:07]} {[%emt 00:00:52]} 40. Kf2 {[%clk
00:01:33]} {[%emt 00:00:15]} Qc2+ {[%clk 00:30:11]} {[%emt 00:00:27]} 41. Kg3
{[%clk 00:27:32]} {[%emt 00:04:30]} Qg6+ {[%clk 00:58:49]} {[%emt 00:01:52]} 42.
Kf2 {[%clk 00:22:36]} {[%emt 00:05:26]} Qc2+ {[%clk 00:59:06]} {[%emt
00:00:15]} 43. Ke1 {[%clk 00:20:14]} {[%emt 00:02:50]} Qb1+ {[%clk 00:58:49]}
{[%emt 00:00:47]} 44. Kd2 {[%clk 00:20:27]} {[%emt 00:00:18]} Qa2+ {[%clk
00:59:11]} {[%emt 00:00:08]} 45. Kc1 {[%clk 00:19:53]} {[%emt 00:01:03]} Qc4+
{[%clk 00:59:35]} {[%emt 00:00:07]} 46. Bc3 {[%clk 00:18:39]} {[%emt 00:01:44]}
Qf1+ {[%clk 00:59:56]} {[%emt 00:00:09]} 47. Kb2 {[%clk 00:17:08]} {[%emt
00:02:00]} Qg2+ {[%clk 01:00:04]} {[%emt 00:00:23]} 48. Bd2 {[%clk 00:17:28]}
{[%emt 00:00:10]} Kf7 {[%clk 00:58:38]} {[%emt 00:01:56]} 49. Qxa7+ {[%clk
00:17:06]} {[%emt 00:00:53]} Kxf6 {[%clk 00:59:07]} 50. Qe3 {[%clk 00:16:47]}
{[%emt 00:00:49]} Qe4 {[%clk 00:57:24]} {[%emt 00:02:13]} 51. Qf2+ {[%clk
00:08:59]} {[%emt 00:08:17]} Qf3 {[%clk 00:57:00]} {[%emt 00:00:54]} 52. Bc3+
{[%clk 00:08:47]} {[%emt 00:00:44]} Kf5 {[%clk 00:56:25]} {[%emt 00:01:05]} 53.
Qh2 {[%clk 00:08:28]} {[%emt 00:00:48]} Qg2+ {[%clk 00:56:40]} {[%emt
00:00:15]} 54. Qxg2 {[%clk 00:08:54]} {[%emt 00:00:04]} Bxg2 {[%clk 00:57:03]}
{[%emt 00:00:07]} 55. Kb3 {[%clk 00:07:19]} {[%emt 00:02:04]} Bf1 {[%clk
00:57:02]} {[%emt 00:00:32]} 56. a4 {[%clk 00:04:27]} {[%emt 00:03:23]} Ke4
{[%clk 00:56:39]} {[%emt 00:00:52]} 57. b5 {[%clk 00:04:50]} {[%emt 00:00:07]}
Kd5 {[%clk 00:57:06]} {[%emt 00:00:03]} 58. Kb4 {[%clk 00:05:14]} {[%emt
00:00:06]} Kd6 {[%clk 00:57:29]} {[%emt 00:00:07]} 59. Ka5 {[%clk 00:02:47]}
{[%emt 00:02:58]} Kc7 {[%clk 00:57:32]} {[%emt 00:00:27]} 60. Ka6 {[%clk
00:03:09]} {[%emt 00:00:08]} Kb8 {[%clk 00:57:51]} {[%emt 00:00:10]} 61. Kb6
{[%clk 00:02:49]} {[%emt 00:00:50]} Ka8 {[%clk 00:58:12]} {[%emt 00:00:09]} 62.
Kc7 {[%clk 00:02:57]} {[%emt 00:00:22]} Be2 {[%clk 00:57:33]} {[%emt 00:01:09]}
63. b6 {[%clk 00:00:52]} {[%emt 00:02:35]} Ba6 {[%clk 00:57:56]} {[%emt
00:00:07]} 64. a5 {[%clk 00:01:09]} {[%emt 00:00:12]} Bb7 {[%clk 00:58:22]}
{[%emt 00:00:05]} 65. Bb2 {[%clk 00:00:50]} {[%emt 00:00:49]} Ba6 {[%clk
00:58:48]} {[%emt 00:00:04]} 66. Ba1 {[%clk 00:01:15]} {[%emt 00:00:05]} Bb7
{[%clk 00:59:16]} {[%emt 00:00:03]} 67. Bh8 {[%clk 00:01:41]} {[%emt 00:00:04]}
Ba6 {[%clk 00:59:34]} {[%emt 00:00:12]} 68. Bf6 {[%clk 00:00:46]} {[%emt
00:01:24]} Bb7 {[%clk 00:59:59]} {[%emt 00:00:06]} 69. Bd4 {[%clk 00:01:11]}
{[%emt 00:00:04]} Ba6 {[%clk 01:00:25]} {[%emt 00:00:04]} 70. Kc6 {[%clk
00:01:32]} {[%emt 00:00:09]} Bc8 {[%clk 01:00:47]} {[%emt 00:00:08]} 71. Be5
{[%clk 00:00:50]} {[%emt 00:01:12]} Bb7+ {[%clk 01:01:07]} {[%emt 00:00:11]} 72.
Kb5 {[%clk 00:01:13]} {[%emt 00:00:06]} Ba6+ {[%clk 01:01:33]} {[%emt
00:00:04]} 73. Kc5 {[%clk 00:01:15]} {[%emt 00:00:28]} Kb7 {[%clk 01:02:00]}
{[%emt 00:00:03]} 74. Bd6 {[%clk 00:01:34]} {[%emt 00:00:11]} 1/2-1/2

[Event "Masters Tournament (MTO)"]
[Site "Biel, Switzerland"]
[Date "2026.07.14"]
[Round "2.19"]
[White "Fattori Dittmar, Luca"]
[Black "Pleschke, Julius Jonas"]
[Result "0-1"]
[TimeControl "100+30+30sec/move"]
[WhiteTitle "-"]
[BlackTitle "-"]
[WhiteFideId "34678883"]
[BlackFideId "54734258"]
[WhiteElo "1840"]
[BlackElo "2280"]

1. e4 {[%clk 01:40:50]} {[%emt 00:00:09]} c5 {[%clk 01:40:50]} {[%emt
00:00:13]} 2. Nf3 {[%clk 01:40:44]} {[%emt 00:00:33]} a6 {[%clk 01:41:08]}
{[%emt 00:00:12]} 3. c3 {[%clk 01:40:29]} {[%emt 00:00:46]} d5 {[%clk
01:41:10]} {[%emt 00:00:27]} 4. exd5 {[%clk 01:40:34]} {[%emt 00:00:25]} Qxd5
{[%clk 01:41:33]} {[%emt 00:00:07]} 5. d4 {[%clk 01:40:58]} {[%emt 00:00:06]}
e6 {[%clk 01:41:34]} {[%emt 00:00:28]} 6. Be3 {[%clk 01:41:09]} {[%emt
00:00:21]} Nd7 {[%clk 01:41:51]} {[%emt 00:00:12]} 7. Nbd2 {[%clk 01:39:43]}
{[%emt 00:01:57]} Ngf6 {[%clk 01:41:25]} {[%emt 00:00:56]} 8. h3 {[%clk
01:39:33]} {[%emt 00:00:40]} Be7 {[%clk 01:39:53]} {[%emt 00:02:01]} 9. Be2
{[%clk 01:38:45]} {[%emt 00:01:18]} O-O {[%clk 01:38:19]} {[%emt 00:02:06]} 10.
O-O {[%clk 01:39:10]} {[%emt 00:00:05]} b6 {[%clk 01:33:12]} {[%emt 00:05:38]}
11. dxc5 {[%clk 01:37:48]} {[%emt 00:01:52]} Bxc5 {[%clk 01:29:21]} {[%emt
00:04:20]} 12. Bxc5 {[%clk 01:37:30]} {[%emt 00:00:48]} Qxc5 {[%clk 01:28:01]}
{[%emt 00:01:51]} 13. Bd3 {[%clk 01:34:04]} {[%emt 00:03:56]} Bb7 {[%clk
01:27:31]} {[%emt 00:00:59]} 14. Qe2 {[%clk 01:34:28]} {[%emt 00:00:06]} Qc7
{[%clk 01:26:53]} {[%emt 00:01:07]} 15. Ne4 {[%clk 01:33:23]} {[%emt 00:01:36]}
Nd5 {[%clk 01:25:58]} {[%emt 00:01:24]} 16. Bc2 {[%clk 01:31:31]} {[%emt
00:02:24]} Rae8 {[%clk 01:16:17]} {[%emt 00:10:10]} 17. Rad1 {[%clk 01:30:42]}
{[%emt 00:01:19]} f5 {[%clk 01:15:14]} {[%emt 00:01:32]} 18. Ned2 {[%clk
01:30:00]} {[%emt 00:01:13]} b5 {[%clk 01:10:04]} {[%emt 00:05:40]} 19. c4
{[%clk 01:23:28]} {[%emt 00:07:03]} Nf4 {[%clk 01:07:53]} {[%emt 00:02:40]} 20.
Qe3 {[%clk 01:23:49]} {[%emt 00:00:08]} e5 {[%clk 01:06:00]} {[%emt 00:02:23]}
21. Bb3 {[%clk 01:23:50]} {[%emt 00:00:30]} b4 {[%clk 01:03:21]} {[%emt
00:03:10]} 22. Rfe1 {[%clk 01:22:49]} {[%emt 00:01:30]} Nc5 {[%clk 01:01:56]}
{[%emt 00:01:49]} 23. Nf1 {[%clk 01:21:24]} {[%emt 00:02:01]} e4 {[%clk
01:00:12]} {[%emt 00:02:14]} 24. Nd4 {[%clk 01:20:31]} {[%emt 00:01:23]} Nfd3
{[%clk 01:00:21]} {[%emt 00:00:20]} 25. Re2 {[%clk 01:20:53]} {[%emt 00:00:09]}
f4 {[%clk 01:00:34]} {[%emt 00:00:16]} 26. Qd2 {[%clk 01:21:09]} {[%emt
00:00:16]} Rd8 {[%clk 00:58:08]} {[%emt 00:02:54]} 27. Nc2 {[%clk 01:20:33]}
{[%emt 00:01:07]} 0-1

[Event "Masters Tournament (MTO)"]
[Site "Biel, Switzerland"]
[Date "2026.07.14"]
[Round "2.20"]
[White "Elmi, Saad Abobaker"]
[Black "Heitmann, Erik"]
[Result "1-0"]
[TimeControl "100+30+30sec/move"]
[WhiteTitle "-"]
[BlackTitle "-"]
[WhiteFideId "1553259"]
[BlackFideId "34608940"]
[WhiteElo "2399"]
[BlackElo "1949"]

1. e4 {[%clk 01:40:57]} {[%emt 00:00:03]} c5 {[%clk 01:40:56]} {[%emt
00:00:04]} 2. Nf3 {[%clk 01:41:13]} {[%emt 00:00:15]} d6 {[%clk 01:41:21]}
{[%emt 00:00:04]} 3. Bc4 {[%clk 01:41:39]} {[%emt 00:00:04]} e6 {[%clk
01:41:34]} {[%emt 00:00:17]} 4. O-O {[%clk 01:40:13]} {[%emt 00:01:56]} Nf6
{[%clk 01:41:45]} {[%emt 00:00:19]} 5. d3 {[%clk 01:40:21]} {[%emt 00:00:22]}
Be7 {[%clk 01:41:50]} {[%emt 00:00:24]} 6. Re1 {[%clk 01:40:02]} {[%emt
00:00:50]} Nc6 {[%clk 01:41:47]} {[%emt 00:00:33]} 7. Nc3 {[%clk 01:38:13]}
{[%emt 00:02:17]} a6 {[%clk 01:41:48]} {[%emt 00:00:31]} 8. a3 {[%clk
01:37:47]} {[%emt 00:00:56]} O-O {[%clk 01:41:34]} {[%emt 00:00:43]} 9. h3
{[%clk 01:35:04]} {[%emt 00:03:15]} b5 {[%clk 01:40:49]} {[%emt 00:01:16]} 10.
Ba2 {[%clk 01:35:21]} {[%emt 00:00:13]} Bb7 {[%clk 01:36:58]} {[%emt 00:04:21]}
11. Ne2 {[%clk 01:33:02]} {[%emt 00:02:48]} Qc7 {[%clk 01:28:52]} {[%emt
00:08:37]} 12. Ng3 {[%clk 01:32:26]} {[%emt 00:01:05]} Rfd8 {[%clk 01:24:51]}
{[%emt 00:04:31]} 13. c3 {[%clk 01:30:51]} {[%emt 00:02:05]} Ne5 {[%clk
01:22:25]} {[%emt 00:02:57]} 14. d4 {[%clk 01:30:35]} {[%emt 00:00:46]} Nxf3+
{[%clk 01:21:42]} {[%emt 00:01:13]} 15. Qxf3 {[%clk 01:30:42]} {[%emt
00:00:22]} c4 {[%clk 01:14:56]} {[%emt 00:07:17]} 16. Bf4 {[%clk 01:29:54]}
{[%emt 00:01:17]} Qc6 {[%clk 01:09:00]} {[%emt 00:06:27]} 17. Rad1 {[%clk
01:29:30]} {[%emt 00:00:54]} Bf8 {[%clk 01:06:12]} {[%emt 00:03:18]} 18. Bg5
{[%clk 01:28:22]} {[%emt 00:01:37]} Be7 {[%clk 00:58:38]} {[%emt 00:08:05]} 19.
Nh5 {[%clk 01:28:27]} {[%emt 00:00:25]} Nxh5 {[%clk 00:54:35]} {[%emt
00:04:33]} 20. Bxe7 {[%clk 01:28:50]} {[%emt 00:00:06]} Rd7 {[%clk 00:53:04]}
{[%emt 00:02:01]} 21. Bg5 {[%clk 01:25:35]} {[%emt 00:03:45]} g6 {[%clk
00:50:18]} {[%emt 00:03:17]} 22. d5 {[%clk 01:24:11]} {[%emt 00:01:54]} Qc5
{[%clk 00:45:21]} {[%emt 00:05:27]} 23. g4 {[%clk 01:04:11]} {[%emt 00:20:29]}
Ng7 {[%clk 00:45:33]} {[%emt 00:00:16]} 24. Bf6 {[%clk 01:03:04]} {[%emt
00:01:39]} e5 {[%clk 00:33:45]} {[%emt 00:12:19]} 25. h4 {[%clk 01:01:08]}
{[%emt 00:02:25]} Qc8 {[%clk 00:32:31]} {[%emt 00:01:43]} 26. Bg5 {[%clk
00:47:33]} {[%emt 00:14:07]} Qf8 {[%clk 00:26:41]} {[%emt 00:06:19]} 27. h5
{[%clk 00:44:46]} {[%emt 00:03:18]} Ne8 {[%clk 00:26:18]} {[%emt 00:00:52]} 28.
Kg2 {[%clk 00:43:12]} {[%emt 00:02:04]} f6 {[%clk 00:24:37]} {[%emt 00:02:11]}
29. Be3 {[%clk 00:43:10]} {[%emt 00:00:33]} g5 {[%clk 00:21:45]} {[%emt
00:04:50]} 30. b3 {[%clk 00:42:25]} cxb3 {[%clk 00:19:01]} {[%emt 00:03:00]} 31.
Bxb3 {[%clk 00:42:53]} {[%emt 00:00:02]} Rc8 {[%clk 00:16:56]} {[%emt
00:02:36]} 32. Rc1 {[%clk 00:42:30]} {[%emt 00:00:52]} h6 {[%clk 00:15:44]}
{[%emt 00:01:42]} 33. a4 {[%clk 00:41:31]} {[%emt 00:01:30]} Ng7 {[%clk
00:14:06]} {[%emt 00:02:07]} 34. axb5 {[%clk 00:39:21]} {[%emt 00:02:41]} axb5
{[%clk 00:14:35]} {[%emt 00:00:01]} 35. Qe2 {[%clk 00:39:29]} {[%emt 00:00:21]}
Ba6 {[%clk 00:14:15]} {[%emt 00:00:51]} 36. Bd2 {[%clk 00:27:36]} {[%emt
00:12:21]} Rc5 {[%clk 00:13:33]} {[%emt 00:01:14]} 37. Ra1 {[%clk 00:27:41]}
{[%emt 00:00:25]} Qc8 {[%clk 00:13:16]} {[%emt 00:00:47]} 38. Qf3 {[%clk
00:26:49]} {[%emt 00:01:22]} Rf7 {[%clk 00:11:59]} {[%emt 00:01:47]} 39. Ra5
{[%clk 00:26:28]} {[%emt 00:00:51]} Bb7 {[%clk 00:10:34]} {[%emt 00:01:55]} 40.
Rea1 {[%clk 00:25:19]} {[%emt 00:01:39]} Kf8 {[%clk 00:09:18]} {[%emt
00:01:46]} 41. Be3 {[%clk 00:19:13]} {[%emt 00:06:35]} Rxc3 {[%clk 00:08:43]}
{[%emt 00:01:03]} 42. Rxb5 {[%clk 00:19:41]} {[%emt 00:00:05]} Kg8 {[%clk
00:05:40]} {[%emt 00:03:32]} 43. Ra7 {[%clk 00:18:30]} {[%emt 00:01:41]} Ba6
{[%clk 00:04:35]} {[%emt 00:01:36]} 44. Rxf7 {[%clk 00:18:10]} {[%emt
00:00:49]} Bxb5 {[%clk 00:22:08]} {[%emt 00:12:57]} 45. Rxf6 {[%clk 00:48:35]}
{[%emt 00:00:05]} Rxb3 {[%clk 00:22:34]} {[%emt 00:00:04]} 46. Rxh6 {[%clk
00:48:46]} {[%emt 00:00:19]} Rb1 {[%clk 00:22:21]} {[%emt 00:00:44]} 47. Rg6
{[%clk 00:47:40]} {[%emt 00:01:35]} Qc4 {[%clk 00:12:17]} {[%emt 00:10:35]} 48.
h6 {[%clk 00:47:38]} {[%emt 00:00:32]} Qf1+ {[%clk 00:12:14]} {[%emt 00:00:32]}
49. Kg3 {[%clk 00:47:47]} {[%emt 00:00:21]} Qg1+ {[%clk 00:12:14]} {[%emt
00:00:30]} 50. Qg2 {[%clk 00:48:11]} {[%emt 00:00:06]} Bd3 {[%clk 00:11:04]}
{[%emt 00:01:41]} 51. Qxg1 {[%clk 00:47:45]} {[%emt 00:00:56]} Rxg1+ {[%clk
00:11:24]} {[%emt 00:00:10]} 52. Kf3 {[%clk 00:47:51]} {[%emt 00:00:23]} Bc2
{[%clk 00:05:47]} {[%emt 00:06:07]} 53. Rxg7+ {[%clk 00:47:39]} {[%emt
00:00:41]} Kh8 {[%clk 00:06:12]} {[%emt 00:00:06]} 54. Bxg5 {[%clk 00:46:49]}
{[%emt 00:01:20]} Bd1+ {[%clk 00:05:23]} {[%emt 00:01:18]} 55. Ke3 {[%clk
00:47:15]} {[%emt 00:00:05]} Re1+ {[%clk 00:03:42]} {[%emt 00:02:12]} 56. Kd3
{[%clk 00:46:42]} {[%emt 00:01:02]} Bc2+ {[%clk 00:03:15]} {[%emt 00:00:58]} 57.
Kc3 {[%clk 00:46:35]} {[%emt 00:00:34]} Bxe4 {[%clk 00:03:14]} {[%emt
00:00:34]} 58. Bf6 {[%clk 00:46:29]} {[%emt 00:00:35]} Rc1+ {[%clk 00:02:38]}
{[%emt 00:01:07]} 59. Kd2 {[%clk 00:45:49]} {[%emt 00:01:07]} Rf1 {[%clk
00:01:29]} {[%emt 00:01:40]} 60. Ke2 {[%clk 00:45:31]} {[%emt 00:00:49]} Rh1
{[%clk 00:01:41]} {[%emt 00:00:19]} 61. h7 {[%clk 00:45:45]} {[%emt 00:00:15]}
Rh6 {[%clk 00:01:12]} {[%emt 00:00:58]} 62. Rf7+ {[%clk 00:45:58]} {[%emt
00:00:18]} Rxf6 {[%clk 00:01:31]} {[%emt 00:00:12]} 63. Rxf6 {[%clk 00:46:26]}
{[%emt 00:00:01]} Bxd5 {[%clk 00:01:33]} {[%emt 00:00:28]} 64. Rxd6 {[%clk
00:46:52]} {[%emt 00:00:04]} Bc4+ {[%clk 00:01:54]} {[%emt 00:00:10]} 65. Ke3
{[%clk 00:47:18]} {[%emt 00:00:04]} Kxh7 {[%clk 00:02:15]} {[%emt 00:00:09]} 66.
Ke4 {[%clk 00:47:35]} {[%emt 00:00:13]} Be2 {[%clk 00:02:30]} {[%emt 00:00:15]}
67. Kf5 {[%clk 00:47:55]} {[%emt 00:00:09]} e4 {[%clk 00:02:50]} {[%emt
00:00:10]} 68. Rd7+ {[%clk 00:48:20]} {[%emt 00:00:05]} 1-0